[Event "*** Titled Tuesday Blitz"]
[Site "Chess.com"]
[Date "2020.11.10"]
[Round "10"]
[White "swisspower96"]
[Black "ChelsieMonica"]
[Result "0-1"]
[WhiteElo "2546"]
[BlackElo "2380"]
[TimeControl "180+1"]
[EndTime "12:02:37 PST"]
[Termination "ChelsieMonica won by resignation"]

1. g4 {[%clk 0:02:57]} 1... h5 {[%clk 0:02:50.2]} 2. g5 {[%clk 0:02:55.6]} 2...
Nc6 {[%clk 0:02:48.8]} 3. Bg2 {[%clk 0:02:52.1]} 3... d5 {[%clk 0:02:49.1]} 4.
c4 {[%clk 0:02:50.1]} 4... d4 {[%clk 0:02:48.2]} 5. d3 {[%clk 0:02:31.7]} 5...
e5 {[%clk 0:02:46.4]} 6. Nd2 {[%clk 0:02:31.4]} 6... Qxg5 {[%clk 0:02:36.7]} 7.
Bxc6+ {[%clk 0:02:30]} 7... bxc6 {[%clk 0:02:37.6]} 8. Ngf3 {[%clk 0:02:30.4]}
8... Qf5 {[%clk 0:02:28.8]} 9. Ne4 {[%clk 0:02:27.6]} 9... h4 {[%clk 0:02:23.7]}
10. Rg1 {[%clk 0:02:21.5]} 10... f6 {[%clk 0:02:14.4]} 11. Bd2 {[%clk
0:02:02.7]} 11... g5 {[%clk 0:02:05.9]} 12. Nexg5 {[%clk 0:02:01.4]} 12... fxg5
{[%clk 0:02:00.8]} 13. Rxg5 {[%clk 0:02:01.5]} 13... Qf6 {[%clk 0:01:49.1]} 14.
Rxe5+ {[%clk 0:01:59.5]} 14... Be7 {[%clk 0:01:46.7]} 15. Qa4 {[%clk 0:01:47.1]}
15... Bd7 {[%clk 0:01:45.3]} 16. Bg5 {[%clk 0:01:41.3]} 16... Qg6 {[%clk
0:01:23.4]} 17. Qb4 {[%clk 0:01:16.1]} 17... Rh7 {[%clk 0:01:12.2]} 18. O-O-O
{[%clk 0:01:07.3]} 18... Kf8 {[%clk 0:00:55.7]} 19. Qb7 {[%clk 0:01:02.1]} 19...
Rc8 {[%clk 0:00:48.7]} 20. Rg1 {[%clk 0:00:59.3]} 20... Bd6 {[%clk 0:00:38.7]}
21. Re4 {[%clk 0:00:49]} 21... Qf5 {[%clk 0:00:36.4]} 22. Nxd4 {[%clk
0:00:36.4]} 22... Qxf2 {[%clk 0:00:36.2]} 23. Be3 {[%clk 0:00:35.5]} 23... Qxh2
{[%clk 0:00:36.3]} 24. c5 {[%clk 0:00:28.2]} 24... Bg3 {[%clk 0:00:33.7]} 25.
Rf1+ {[%clk 0:00:26.2]} 25... Rf7 {[%clk 0:00:32.4]} 26. Rxf7+ {[%clk
0:00:24.7]} 26... Kxf7 {[%clk 0:00:33.3]} 27. Nxc6 {[%clk 0:00:24.8]} 27... Nf6
{[%clk 0:00:32.6]} 28. Re7+ {[%clk 0:00:23.2]} 28... Kg6 {[%clk 0:00:32.7]} 29.
Rxd7 {[%clk 0:00:23.3]} 29... Nxd7 {[%clk 0:00:32.5]} 30. Qxc8 {[%clk
0:00:23.4]} 30... Qh1+ {[%clk 0:00:32.5]} 31. Kc2 {[%clk 0:00:23.1]} 31... Qxc6
{[%clk 0:00:33.4]} 32. Qg8+ {[%clk 0:00:22.5]} 32... Kf5 {[%clk 0:00:32.7]} 33.
Qh7+ {[%clk 0:00:13.5]} 33... Kg4 {[%clk 0:00:33]} 34. d4 {[%clk 0:00:08.2]}
34... Nf6 {[%clk 0:00:29]} 35. Qg6+ {[%clk 0:00:07.7]} 35... Kh3 {[%clk
0:00:29.2]} 36. Qf5+ {[%clk 0:00:08.1]} 36... Kh2 {[%clk 0:00:28.3]} 37. Bg5
{[%clk 0:00:05.6]} 37... Qe4+ {[%clk 0:00:28.1]} 38. Qxe4 {[%clk 0:00:05.8]}
38... Nxe4 {[%clk 0:00:29]} 39. Bd8 {[%clk 0:00:04.6]} 39... h3 {[%clk
0:00:29.3]} 40. Kd3 {[%clk 0:00:05.2]} 40... Kg2 {[%clk 0:00:28.5]} 41. Kxe4
{[%clk 0:00:02.8]} 41... h2 {[%clk 0:00:29.4]} 42. Bxc7 {[%clk 0:00:02.7]} 42...
h1=Q {[%clk 0:00:30.3]} 43. Bxg3 {[%clk 0:00:02.9]} 43... Kxg3+ {[%clk
0:00:31.2]} 44. Ke5 {[%clk 0:00:03.4]} 44... Qg2 {[%clk 0:00:31.2]} 45. e4
{[%clk 0:00:03.5]} 45... Qxb2 {[%clk 0:00:31.4]} 46. c6 {[%clk 0:00:04.4]} 46...
Qxa2 {[%clk 0:00:30.5]} 47. c7 {[%clk 0:00:04.4]} 47... Qc4 {[%clk 0:00:31]} 48.
Kd6 {[%clk 0:00:04.1]} 48... Qxd4+ {[%clk 0:00:31.4]} 49. Kc6 {[%clk 0:00:04.7]}
49... Qxe4+ {[%clk 0:00:31.8]} 50. Kb5 {[%clk 0:00:04.6]} 50... Qc2 {[%clk
0:00:31.7]} 51. Ka6 {[%clk 0:00:04.5]} 51... Qxc7 {[%clk 0:00:31.6]} 0-1

[Event "*** Titled Tuesday Blitz"]
[Site "Chess.com"]
[Date "2020.11.10"]
[Round "10"]
[White "VladimirPotkin"]
[Black "Mr_Heisenberg13"]
[Result "1-0"]
[WhiteElo "2668"]
[BlackElo "2485"]
[TimeControl "180+1"]
[EndTime "12:02:41 PST"]
[Termination "VladimirPotkin won by resignation"]

1. Nf3 {[%clk 0:03:00.9]} 1... Nf6 {[%clk 0:02:59.5]} 2. c4 {[%clk 0:03:00.6]}
2... e6 {[%clk 0:02:59.7]} 3. Nc3 {[%clk 0:03:01]} 3... d5 {[%clk 0:02:59.7]} 4.
d4 {[%clk 0:03:01.1]} 4... Bb4 {[%clk 0:02:59.8]} 5. e3 {[%clk 0:03:00.4]} 5...
O-O {[%clk 0:02:57.8]} 6. Bd3 {[%clk 0:02:59.6]} 6... b6 {[%clk 0:02:56.7]} 7.
cxd5 {[%clk 0:02:54.7]} 7... exd5 {[%clk 0:02:57.6]} 8. O-O {[%clk 0:02:54.4]}
8... Bb7 {[%clk 0:02:55.8]} 9. Ne5 {[%clk 0:02:54.4]} 9... Nbd7 {[%clk
0:02:49.9]} 10. Bd2 {[%clk 0:02:50]} 10... Nxe5 {[%clk 0:02:45.1]} 11. dxe5
{[%clk 0:02:49.7]} 11... Nd7 {[%clk 0:02:45.7]} 12. f4 {[%clk 0:02:18.6]} 12...
Qe7 {[%clk 0:02:24.6]} 13. Qc2 {[%clk 0:02:11.7]} 13... h6 {[%clk 0:02:13.2]}
14. Rad1 {[%clk 0:02:10.4]} 14... f6 {[%clk 0:01:57.6]} 15. Nxd5 {[%clk
0:01:28.7]} 15... Bxd5 {[%clk 0:01:58.5]} 16. Bxb4 {[%clk 0:01:27]} 16... Qxb4
{[%clk 0:01:58.1]} 17. Bh7+ {[%clk 0:01:27]} 17... Kh8 {[%clk 0:01:58]} 18. Rxd5
{[%clk 0:01:27.9]} 18... Nc5 {[%clk 0:01:46.3]} 19. a3 {[%clk 0:01:07.6]} 19...
Qb3 {[%clk 0:01:19.7]} 20. Qxb3 {[%clk 0:01:01.8]} 20... Nxb3 {[%clk 0:01:20.6]}
21. Bc2 {[%clk 0:01:01.9]} 21... Nc5 {[%clk 0:01:19.1]} 22. b4 {[%clk
0:01:01.5]} 22... Ne6 {[%clk 0:01:17.4]} 23. Rfd1 {[%clk 0:00:53.9]} 23... c5
{[%clk 0:00:56.4]} 24. Rd6 {[%clk 0:00:51]} 24... Rae8 {[%clk 0:00:54.4]} 25. f5
{[%clk 0:00:44.9]} 25... Nc7 {[%clk 0:00:49.5]} 26. e6 {[%clk 0:00:44.9]} 26...
Nb5 {[%clk 0:00:49.9]} 27. Rd7 {[%clk 0:00:41.9]} 27... Nxa3 {[%clk 0:00:49.1]}
28. Be4 {[%clk 0:00:40]} 28... cxb4 {[%clk 0:00:45.5]} 29. Rxa7 {[%clk 0:00:40]}
29... Rc8 {[%clk 0:00:37.7]} 30. Rdd7 {[%clk 0:00:38.1]} 30... Rg8 {[%clk
0:00:37.2]} 31. Rab7 {[%clk 0:00:34.2]} 31... Nc4 {[%clk 0:00:32.1]} 32. e7
{[%clk 0:00:31]} 32... b3 {[%clk 0:00:28.6]} 33. Bd5 {[%clk 0:00:30]} 33... b2
{[%clk 0:00:26.1]} 34. Be4 {[%clk 0:00:29.4]} 34... Ra8 {[%clk 0:00:16.1]} 35.
Kf2 {[%clk 0:00:28.9]} 35... Ra2 {[%clk 0:00:15]} 36. Kg3 {[%clk 0:00:28]} 36...
Ra3 {[%clk 0:00:11.8]} 37. Bb1 {[%clk 0:00:23.5]} 37... Rxe3+ {[%clk 0:00:11.4]}
38. Kf4 {[%clk 0:00:24.1]} 38... Re1 {[%clk 0:00:10.2]} 39. Rd8 {[%clk
0:00:21.7]} 39... Kh7 {[%clk 0:00:05.5]} 40. Rbb8 {[%clk 0:00:20.1]} 40... g5+
{[%clk 0:00:04.7]} 41. fxg6+ {[%clk 0:00:19.8]} 41... Rxg6 {[%clk 0:00:04.3]}
42. Rh8+ {[%clk 0:00:16.6]} 42... Kg7 {[%clk 0:00:04.6]} 43. Rbg8+ {[%clk
0:00:16.1]} 43... Kf7 {[%clk 0:00:05]} 44. Bxg6+ {[%clk 0:00:17]} 44... Kxe7
{[%clk 0:00:05.5]} 45. Re8+ {[%clk 0:00:17.4]} 45... Kd6 {[%clk 0:00:05.9]} 46.
Rxe1 {[%clk 0:00:18.3]} 1-0

[Event "*** Titled Tuesday Blitz"]
[Site "Chess.com"]
[Date "2020.11.10"]
[Round "10"]
[White "albi1999"]
[Black "Supernotar"]
[Result "0-1"]
[WhiteElo "2581"]
[BlackElo "2863"]
[TimeControl "180+1"]
[EndTime "12:02:42 PST"]
[Termination "Supernotar won by resignation"]

1. d4 {[%clk 0:03:00.9]} 1... d5 {[%clk 0:02:59.9]} 2. Nf3 {[%clk 0:03:00.4]}
2... Nf6 {[%clk 0:02:58.8]} 3. c4 {[%clk 0:03:00]} 3... dxc4 {[%clk 0:02:58.8]}
4. e3 {[%clk 0:02:56.6]} 4... e6 {[%clk 0:02:57.2]} 5. Bxc4 {[%clk 0:02:56.6]}
5... a6 {[%clk 0:02:57.1]} 6. O-O {[%clk 0:02:56.5]} 6... b5 {[%clk 0:02:56.8]}
7. Bd3 {[%clk 0:02:55.6]} 7... Bb7 {[%clk 0:02:56]} 8. Qe2 {[%clk 0:02:53.1]}
8... Nbd7 {[%clk 0:02:54.8]} 9. e4 {[%clk 0:02:50.1]} 9... Be7 {[%clk 0:02:52]}
10. a4 {[%clk 0:02:46.2]} 10... b4 {[%clk 0:02:44.7]} 11. Nbd2 {[%clk
0:02:44.2]} 11... c5 {[%clk 0:02:42.6]} 12. e5 {[%clk 0:02:27.8]} 12... Nd5
{[%clk 0:02:41.2]} 13. Nb3 {[%clk 0:02:21.5]} 13... cxd4 {[%clk 0:02:36]} 14.
Rd1 {[%clk 0:02:20.7]} 14... O-O {[%clk 0:02:32.9]} 15. Qe4 {[%clk 0:02:15.6]}
15... g6 {[%clk 0:02:31.5]} 16. Bh6 {[%clk 0:02:14.5]} 16... Re8 {[%clk
0:02:31.8]} 17. Qxd4 {[%clk 0:02:11.6]} 17... Rc8 {[%clk 0:02:29.6]} 18. Rac1
{[%clk 0:02:04.2]} 18... Rxc1 {[%clk 0:02:07.5]} 19. Rxc1 {[%clk 0:02:05.1]}
19... Qb8 {[%clk 0:01:54.4]} 20. h4 {[%clk 0:01:54.6]} 20... Rd8 {[%clk
0:01:49.4]} 21. Bg5 {[%clk 0:01:52.3]} 21... Bxg5 {[%clk 0:01:45.4]} 22. hxg5
{[%clk 0:01:52.5]} 22... Ne7 {[%clk 0:01:36.1]} 23. Nbd2 {[%clk 0:01:05.7]}
23... Nf5 {[%clk 0:01:09.5]} 24. Bxf5 {[%clk 0:01:05.1]} 24... gxf5 {[%clk
0:01:05.7]} 25. Qf4 {[%clk 0:00:37.6]} 25... Bd5 {[%clk 0:01:03.6]} 26. Re1
{[%clk 0:00:34.2]} 26... Nc5 {[%clk 0:01:01.5]} 27. Qh4 {[%clk 0:00:27.4]} 27...
Nd3 {[%clk 0:00:53.3]} 28. Re3 {[%clk 0:00:25.2]} 28... Bxf3 {[%clk 0:00:50.9]}
29. Nxf3 {[%clk 0:00:25.2]} 29... Qc7 {[%clk 0:00:44.3]} 30. g6 {[%clk 0:00:20]}
30... fxg6 {[%clk 0:00:39.6]} 31. Ng5 {[%clk 0:00:20.1]} 31... Qe7 {[%clk
0:00:37.8]} 32. Qc4 {[%clk 0:00:12.4]} 32... Nxb2 {[%clk 0:00:31.4]} 33. Qxe6+
{[%clk 0:00:11.5]} 33... Qxe6 {[%clk 0:00:30.1]} 34. Nxe6 {[%clk 0:00:12.4]}
34... Rd1+ {[%clk 0:00:27]} 35. Kh2 {[%clk 0:00:12.4]} 35... Nd3 {[%clk
0:00:26.3]} 36. f4 {[%clk 0:00:04.2]} 36... b3 {[%clk 0:00:24.8]} 37. Ng5 {[%clk
0:00:01.7]} 37... b2 {[%clk 0:00:23.2]} 38. e6 {[%clk 0:00:02.2]} 38... b1=Q
{[%clk 0:00:17]} 39. e7 {[%clk 0:00:02.6]} 39... Rh1+ {[%clk 0:00:13.3]} 40. Kg3
{[%clk 0:00:02.9]} 40... Qe1+ {[%clk 0:00:10.2]} 41. Rxe1 {[%clk 0:00:02.1]}
41... Rxe1 {[%clk 0:00:10.2]} 0-1

[Event "*** Titled Tuesday Blitz"]
[Site "Chess.com"]
[Date "2020.11.10"]
[Round "10"]
[White "sofaceindisguise"]
[Black "zverr1"]
[Result "1-0"]
[WhiteElo "2694"]
[BlackElo "2444"]
[TimeControl "180+1"]
[EndTime "12:02:43 PST"]
[Termination "sofaceindisguise won by checkmate"]

1. d4 {[%clk 0:03:00.9]} 1... Nf6 {[%clk 0:02:57.9]} 2. Nf3 {[%clk 0:03:00.7]}
2... g6 {[%clk 0:02:57]} 3. c4 {[%clk 0:02:59.8]} 3... Bg7 {[%clk 0:02:57.1]} 4.
Nc3 {[%clk 0:02:59.7]} 4... d5 {[%clk 0:02:57.6]} 5. Bg5 {[%clk 0:02:59]} 5...
Ne4 {[%clk 0:02:55.1]} 6. Bf4 {[%clk 0:02:59.3]} 6... Nxc3 {[%clk 0:02:51.7]} 7.
bxc3 {[%clk 0:03:00.2]} 7... dxc4 {[%clk 0:02:51.3]} 8. h4 {[%clk 0:03:00.8]}
8... h5 {[%clk 0:02:40.5]} 9. Qa4+ {[%clk 0:02:54.6]} 9... Nd7 {[%clk
0:02:28.7]} 10. Qxc4 {[%clk 0:02:53.3]} 10... c5 {[%clk 0:02:28.3]} 11. e3
{[%clk 0:02:51.9]} 11... O-O {[%clk 0:02:24.7]} 12. Be2 {[%clk 0:02:50.2]} 12...
a6 {[%clk 0:02:10.6]} 13. Ng5 {[%clk 0:02:48.6]} 13... b5 {[%clk 0:01:59.5]} 14.
Qd3 {[%clk 0:02:42.4]} 14... e5 {[%clk 0:01:54.5]} 15. dxe5 {[%clk 0:02:42.4]}
15... Nxe5 {[%clk 0:01:52.4]} 16. Qxd8 {[%clk 0:02:37.6]} 16... Rxd8 {[%clk
0:01:53.3]} 17. O-O {[%clk 0:02:36.4]} 17... Bf5 {[%clk 0:01:47]} 18. e4 {[%clk
0:02:15.8]} 18... Bg4 {[%clk 0:01:31.1]} 19. f3 {[%clk 0:02:15.7]} 19... Bd7
{[%clk 0:01:27.7]} 20. Be3 {[%clk 0:02:14.6]} 20... Rac8 {[%clk 0:01:15.8]} 21.
f4 {[%clk 0:02:08.6]} 21... Ng4 {[%clk 0:01:13.3]} 22. Bxg4 {[%clk 0:02:08.8]}
22... Bxg4 {[%clk 0:01:13.1]} 23. e5 {[%clk 0:02:09]} 23... Rd3 {[%clk
0:01:03.9]} 24. Bf2 {[%clk 0:02:04.5]} 24... Rxc3 {[%clk 0:00:58.8]} 25. Ne4
{[%clk 0:02:04.3]} 25... Rc2 {[%clk 0:00:55.3]} 26. Rfc1 {[%clk 0:01:51.3]}
26... Rxc1+ {[%clk 0:00:52.9]} 27. Rxc1 {[%clk 0:01:52.2]} 27... c4 {[%clk
0:00:53.6]} 28. Nd6 {[%clk 0:01:47.8]} 28... Rc6 {[%clk 0:00:50.8]} 29. Be1
{[%clk 0:01:46.3]} 29... f6 {[%clk 0:00:48.9]} 30. Bc3 {[%clk 0:01:41.8]} 30...
fxe5 {[%clk 0:00:47.1]} 31. fxe5 {[%clk 0:01:39.7]} 31... b4 {[%clk 0:00:29.1]}
32. Bxb4 {[%clk 0:01:37.2]} 32... Bxe5 {[%clk 0:00:28.6]} 33. Rxc4 {[%clk
0:01:34.1]} 33... Rxd6 {[%clk 0:00:24.7]} 34. Bxd6 {[%clk 0:01:35]} 34... Bxd6
{[%clk 0:00:25.6]} 35. Rc6 {[%clk 0:01:34.2]} 35... Be7 {[%clk 0:00:22.8]} 36.
Rxg6+ {[%clk 0:01:33.7]} 36... Kf7 {[%clk 0:00:22.2]} 37. Rxa6 {[%clk
0:01:34.6]} 37... Bxh4 {[%clk 0:00:22]} 38. a4 {[%clk 0:01:35]} 38... Bf6 {[%clk
0:00:21.2]} 39. a5 {[%clk 0:01:34.7]} 39... Bd4+ {[%clk 0:00:19.9]} 40. Kh1
{[%clk 0:01:35.1]} 40... Be6 {[%clk 0:00:18.4]} 41. Rd6 {[%clk 0:01:33]} 41...
Be5 {[%clk 0:00:17.6]} 42. Rc6 {[%clk 0:01:32.3]} 42... h4 {[%clk 0:00:15.1]}
43. a6 {[%clk 0:01:32]} 43... Bd4 {[%clk 0:00:14.8]} 44. a7 {[%clk 0:01:28.2]}
44... Bxa7 {[%clk 0:00:13.5]} 45. Rc7+ {[%clk 0:01:28.5]} 45... Kg6 {[%clk
0:00:12.9]} 46. Rxa7 {[%clk 0:01:29.4]} 46... Kg5 {[%clk 0:00:13.1]} 47. Kh2
{[%clk 0:01:29.7]} 47... Bf5 {[%clk 0:00:12.1]} 48. Ra5 {[%clk 0:01:29.9]} 48...
Kg6 {[%clk 0:00:11.5]} 49. Kg1 {[%clk 0:01:29.6]} 49... Kg5 {[%clk 0:00:11.4]}
50. Kf2 {[%clk 0:01:29.8]} 50... Kf4 {[%clk 0:00:11.3]} 51. Ra4+ {[%clk
0:01:27.7]} 51... Be4 {[%clk 0:00:10.3]} 52. Rb4 {[%clk 0:01:27.7]} 52... Kf5
{[%clk 0:00:09.1]} 53. Rb8 {[%clk 0:01:25.5]} 53... Kf4 {[%clk 0:00:08.8]} 54.
Rg8 {[%clk 0:01:22.1]} 54... Bf5 {[%clk 0:00:08.3]} 55. Rh8 {[%clk 0:01:19.8]}
55... Kg4 {[%clk 0:00:08.1]} 56. Ke3 {[%clk 0:01:19.7]} 56... Kg3 {[%clk
0:00:06.4]} 57. Rg8+ {[%clk 0:01:17.3]} 57... Kh2 {[%clk 0:00:06]} 58. Kf2
{[%clk 0:01:15.4]} 58... Be4 {[%clk 0:00:05]} 59. Rg4 {[%clk 0:01:15.2]} 59...
h3 {[%clk 0:00:03.5]} 60. Rxe4 {[%clk 0:01:14]} 60... Kh1 {[%clk 0:00:02.4]} 61.
gxh3 {[%clk 0:01:13.4]} 61... Kh2 {[%clk 0:00:02.2]} 62. h4 {[%clk 0:01:13.5]}
62... Kh3 {[%clk 0:00:03.1]} 63. h5 {[%clk 0:01:13.9]} 63... Kh2 {[%clk
0:00:04]} 64. Rh4# {[%clk 0:01:14.2]} 1-0

[Event "*** Titled Tuesday Blitz"]
[Site "Chess.com"]
[Date "2020.11.10"]
[Round "10"]
[White "giantslayer83"]
[Black "maxip32"]
[Result "1-0"]
[WhiteElo "2708"]
[BlackElo "2450"]
[TimeControl "180+1"]
[EndTime "12:02:44 PST"]
[Termination "giantslayer83 won on time"]

1. c4 {[%clk 0:03:00.9]} 1... g6 {[%clk 0:02:59.8]} 2. d4 {[%clk 0:02:57.9]}
2... Bg7 {[%clk 0:03:00.7]} 3. Nc3 {[%clk 0:02:58.3]} 3... Nf6 {[%clk
0:02:58.9]} 4. g3 {[%clk 0:02:56.5]} 4... O-O {[%clk 0:02:58.6]} 5. Bg2 {[%clk
0:02:56.8]} 5... d6 {[%clk 0:02:59.5]} 6. Nf3 {[%clk 0:02:57.4]} 6... Nbd7
{[%clk 0:03:00.1]} 7. O-O {[%clk 0:02:58.1]} 7... e5 {[%clk 0:03:00.8]} 8. e4
{[%clk 0:02:56.4]} 8... exd4 {[%clk 0:03:00.9]} 9. Nxd4 {[%clk 0:02:57]} 9...
Re8 {[%clk 0:03:00.7]} 10. Be3 {[%clk 0:02:39.8]} 10... a6 {[%clk 0:02:58]} 11.
h3 {[%clk 0:02:30.4]} 11... Rb8 {[%clk 0:02:57.5]} 12. a4 {[%clk 0:02:19.7]}
12... a5 {[%clk 0:02:37.9]} 13. Qc2 {[%clk 0:02:16.8]} 13... Nc5 {[%clk
0:02:38.1]} 14. Rad1 {[%clk 0:02:12.2]} 14... Bd7 {[%clk 0:02:38.4]} 15. b3
{[%clk 0:02:10.6]} 15... Qc8 {[%clk 0:02:35.6]} 16. Kh2 {[%clk 0:02:09.8]} 16...
Re5 {[%clk 0:02:34.2]} 17. g4 {[%clk 0:01:42.5]} 17... Qe8 {[%clk 0:01:19.2]}
18. f3 {[%clk 0:01:34.5]} 18... h5 {[%clk 0:01:12.9]} 19. g5 {[%clk 0:01:31.7]}
19... Nh7 {[%clk 0:01:11.1]} 20. f4 {[%clk 0:01:32.2]} 20... Re7 {[%clk
0:01:00.8]} 21. Nd5 {[%clk 0:01:19.9]} 21... c6 {[%clk 0:00:36.8]} 22. Nxe7+
{[%clk 0:01:19.7]} 22... Qxe7 {[%clk 0:00:37.7]} 23. Rfe1 {[%clk 0:01:15.6]}
23... Re8 {[%clk 0:00:36.3]} 24. Bf2 {[%clk 0:01:15.3]} 24... f6 {[%clk
0:00:36.5]} 25. e5 {[%clk 0:00:38.7]} 25... dxe5 {[%clk 0:00:31.1]} 26. Qxg6
{[%clk 0:00:38.2]} 26... Nf8 {[%clk 0:00:25.9]} 27. Qxh5 {[%clk 0:00:37.9]}
27... fxg5 {[%clk 0:00:14.4]} 28. fxg5 {[%clk 0:00:34.6]} 28... Qf7 {[%clk
0:00:06.2]} 29. Qxf7+ {[%clk 0:00:34.2]} 29... Kxf7 {[%clk 0:00:07.1]} 30. Nxc6
{[%clk 0:00:34.5]} 30... Bxc6 {[%clk 0:00:05]} 31. Bxc6 {[%clk 0:00:32.5]} 31...
bxc6 {[%clk 0:00:05.9]} 32. Bxc5 {[%clk 0:00:33.1]} 32... Ne6 {[%clk 0:00:06.4]}
33. Be3 {[%clk 0:00:31.5]} 33... Kg6 {[%clk 0:00:06.8]} 34. h4 {[%clk
0:00:30.2]} 34... Kh5 {[%clk 0:00:05.5]} 35. Kg3 {[%clk 0:00:28.6]} 35... Bf8
{[%clk 0:00:02.2]} 36. Rd7 {[%clk 0:00:28]} 36... Bb4 {[%clk 0:00:01.7]} 37. Rf1
{[%clk 0:00:28]} 37... Nf4 {[%clk 0:00:01.1]} 38. Rh7+ {[%clk 0:00:24.7]} 38...
Kg6 {[%clk 0:00:01.1]} 39. Rh6+ {[%clk 0:00:25.6]} 39... Kg7 {[%clk 0:00:01.3]}
40. Bxf4 {[%clk 0:00:25.5]} 40... exf4+ {[%clk 0:00:02.2]} 41. Rxf4 {[%clk
0:00:26]} 41... Be1+ {[%clk 0:00:01.9]} 42. Kg4 {[%clk 0:00:26]} 42... Re3
{[%clk 0:00:02]} 43. Rxc6 {[%clk 0:00:23.6]} 43... Rxb3 {[%clk 0:00:01.9]} 44.
Re4 {[%clk 0:00:23.6]} 44... Rg3+ {[%clk 0:00:01.4]} 45. Kh5 {[%clk 0:00:23.6]}
45... Rb3 {[%clk 0:00:01.5]} 46. Rxe1 {[%clk 0:00:23.2]} 1-0

[Event "*** Titled Tuesday Blitz"]
[Site "Chess.com"]
[Date "2020.11.10"]
[Round "10"]
[White "IANOV0007"]
[Black "Luklei18"]
[Result "0-1"]
[WhiteElo "2438"]
[BlackElo "2362"]
[TimeControl "180+1"]
[EndTime "12:02:45 PST"]
[Termination "Luklei18 won by resignation"]

1. Nf3 {[%clk 0:03:00.9]} 1... d6 {[%clk 0:02:56]} 2. d4 {[%clk 0:02:59]} 2...
g6 {[%clk 0:02:56.1]} 3. g3 {[%clk 0:02:57.9]} 3... Bg7 {[%clk 0:02:55.9]} 4.
Bg2 {[%clk 0:02:58.1]} 4... Nf6 {[%clk 0:02:56.7]} 5. b3 {[%clk 0:02:57.6]} 5...
O-O {[%clk 0:02:56.3]} 6. Bb2 {[%clk 0:02:57.6]} 6... a5 {[%clk 0:02:53.3]} 7.
a4 {[%clk 0:02:56.4]} 7... Ne4 {[%clk 0:02:44.9]} 8. O-O {[%clk 0:02:55.5]} 8...
c5 {[%clk 0:02:44.6]} 9. Nbd2 {[%clk 0:02:53.6]} 9... Nxd2 {[%clk 0:02:25.6]}
10. Qxd2 {[%clk 0:02:52.7]} 10... Nc6 {[%clk 0:02:23.4]} 11. c4 {[%clk
0:02:51.4]} 11... cxd4 {[%clk 0:02:18.7]} 12. Nxd4 {[%clk 0:02:50.3]} 12... Nxd4
{[%clk 0:02:10.2]} 13. Bxd4 {[%clk 0:02:49.4]} 13... Bxd4 {[%clk 0:02:11.1]} 14.
Qxd4 {[%clk 0:02:49.3]} 14... Ra6 {[%clk 0:02:12]} 15. Rfd1 {[%clk 0:02:44.7]}
15... Qb6 {[%clk 0:02:11.6]} 16. Qc3 {[%clk 0:02:38.8]} 16... Bd7 {[%clk
0:01:59.4]} 17. h4 {[%clk 0:02:26]} 17... Bc6 {[%clk 0:01:50.5]} 18. h5 {[%clk
0:02:22.3]} 18... Qb4 {[%clk 0:01:40.8]} 19. Qxb4 {[%clk 0:02:17.7]} 19... axb4
{[%clk 0:01:41.7]} 20. hxg6 {[%clk 0:02:14.4]} 20... hxg6 {[%clk 0:01:41.4]} 21.
Bd5 {[%clk 0:02:10.1]} 21... Kg7 {[%clk 0:01:33.1]} 22. Rac1 {[%clk 0:02:06.3]}
22... Ra5 {[%clk 0:01:29.7]} 23. e4 {[%clk 0:02:00.5]} 23... Rc8 {[%clk
0:01:24.2]} 24. Kg2 {[%clk 0:01:46.5]} 24... f5 {[%clk 0:01:02.1]} 25. exf5
{[%clk 0:01:33.9]} 25... gxf5 {[%clk 0:01:00.9]} 26. Bxc6 {[%clk 0:01:23.7]}
26... Rxc6 {[%clk 0:00:54.8]} 27. Kf3 {[%clk 0:01:13]} 27... Kf6 {[%clk
0:00:53.1]} 28. Rh1 {[%clk 0:01:09]} 28... d5 {[%clk 0:00:37]} 29. Rh6+ {[%clk
0:01:01]} 29... Ke5 {[%clk 0:00:17.6]} 30. Re1+ {[%clk 0:00:53.7]} 30... Kd4
{[%clk 0:00:17.9]} 31. Rxc6 {[%clk 0:00:46.4]} 31... bxc6 {[%clk 0:00:17.7]} 32.
cxd5 {[%clk 0:00:46.4]} 32... cxd5 {[%clk 0:00:16]} 33. Rxe7 {[%clk 0:00:45.8]}
33... Rc5 {[%clk 0:00:14.7]} 34. Re3 {[%clk 0:00:38.9]} 34... Rc3 {[%clk
0:00:10.7]} 35. Kf4 {[%clk 0:00:32.1]} 35... Kc5 {[%clk 0:00:09.6]} 36. Rxc3+
{[%clk 0:00:18.1]} 36... bxc3 {[%clk 0:00:10.5]} 37. Ke3 {[%clk 0:00:18]} 37...
Kb4 {[%clk 0:00:10.6]} 38. Kd3 {[%clk 0:00:14.4]} 38... Kxb3 {[%clk 0:00:10.6]}
39. a5 {[%clk 0:00:14.4]} 39... c2 {[%clk 0:00:11.1]} 40. a6 {[%clk 0:00:14.2]}
40... c1=Q {[%clk 0:00:11.2]} 41. a7 {[%clk 0:00:14.1]} 41... Qc4+ {[%clk
0:00:11]} 42. Kd2 {[%clk 0:00:12.7]} 42... Qd4+ {[%clk 0:00:11.4]} 43. Ke2
{[%clk 0:00:12.5]} 43... Qxa7 {[%clk 0:00:12.3]} 44. Kf3 {[%clk 0:00:12.4]}
44... Qd4 {[%clk 0:00:12.1]} 45. Kg2 {[%clk 0:00:11.6]} 45... Kc3 {[%clk
0:00:11.7]} 0-1